[Event "Late-Titled-Tuesday-Blitz-September-26-2023"]
[Site "Chess.com"]
[Date "2023.09.26"]
[Round "1"]
[White "egnfanclub"]
[Black "Alexei_Gubajdullin"]
[Result "0-1"]
[WhiteElo "2385"]
[BlackElo "2679"]
[TimeControl "180+1"]
[EndTime "14:06:11 PDT"]
[Termination "Alexei_Gubajdullin won by resignation"]

1. e4 {[%clk 0:02:57.6]} 1... g6 {[%clk 0:02:59.8]} 2. Nc3 {[%clk 0:02:57.1]}
2... Bg7 {[%clk 0:02:57.6]} 3. f4 {[%clk 0:02:57.1]} 3... c5 {[%clk 0:02:57.3]}
4. Nf3 {[%clk 0:02:57.3]} 4... Nc6 {[%clk 0:02:57.6]} 5. Bc4 {[%clk 0:02:57.5]}
5... d6 {[%clk 0:02:57]} 6. d3 {[%clk 0:02:55.9]} 6... Nf6 {[%clk 0:02:57.1]} 7.
O-O {[%clk 0:02:56.1]} 7... O-O {[%clk 0:02:57.1]} 8. Qe1 {[%clk 0:02:55.9]}
8... e6 {[%clk 0:02:55.3]} 9. Bb3 {[%clk 0:02:52.7]} 9... d5 {[%clk 0:02:55]}
10. f5 {[%clk 0:02:46.1]} 10... dxe4 {[%clk 0:02:46.9]} 11. dxe4 {[%clk
0:02:47]} 11... exf5 {[%clk 0:02:46.5]} 12. e5 {[%clk 0:02:47.4]} 12... Ng4
{[%clk 0:02:44.6]} 13. Bg5 {[%clk 0:02:42.4]} 13... Qa5 {[%clk 0:02:34.9]} 14.
Qh4 {[%clk 0:02:21.9]} 14... c4 {[%clk 0:02:23.7]} 15. Ba4 {[%clk 0:02:18.5]}
15... Ncxe5 {[%clk 0:02:20.8]} 16. Be7 {[%clk 0:02:05.3]} 16... Nxf3+ {[%clk
0:02:06.4]} 17. gxf3 {[%clk 0:02:05.5]} 17... Qb6+ {[%clk 0:02:04.4]} 18. Kh1
{[%clk 0:02:03.1]} 18... Bf6 {[%clk 0:02:02]} 19. Bxf6 {[%clk 0:01:41.2]} 19...
Qxf6 {[%clk 0:02:01.1]} 20. Qe1 {[%clk 0:01:29.2]} 20... Ne5 {[%clk 0:01:43.3]}
21. Nd5 {[%clk 0:01:22]} 21... Qg7 {[%clk 0:01:43.1]} 22. Qh4 {[%clk 0:00:55.8]}
22... b5 {[%clk 0:01:37.6]} 23. Bxb5 {[%clk 0:00:44.6]} 23... Bb7 {[%clk
0:01:37.1]} 24. Rad1 {[%clk 0:00:39.9]} 24... g5 {[%clk 0:01:29]} 25. Qd4 {[%clk
0:00:32.8]} 25... g4 {[%clk 0:01:22.9]} 26. Bxc4 {[%clk 0:00:29.5]} 26... Nxf3
{[%clk 0:01:02]} 27. Nf6+ {[%clk 0:00:07.6]} 27... Kh8 {[%clk 0:01:00.8]} 28.
Rxf3 {[%clk 0:00:07.9]} 28... Bxf3+ {[%clk 0:00:59.1]} 29. Kg1 {[%clk
0:00:08.2]} 29... Bxd1 {[%clk 0:00:58.5]} 0-1

[Event "Late-Titled-Tuesday-Blitz-September-26-2023"]
[Site "Chess.com"]
[Date "2023.09.26"]
[Round "1"]
[White "PawnEatingZombie"]
[Black "IMRosen"]
[Result "0-1"]
[WhiteElo "2133"]
[BlackElo "2550"]
[TimeControl "180+1"]
[EndTime "14:06:11 PDT"]
[Termination "IMRosen won by checkmate"]

1. e4 {[%clk 0:02:55.7]} 1... c5 {[%clk 0:02:59.9]} 2. c3 {[%clk 0:02:53.8]}
2... d5 {[%clk 0:02:59.9]} 3. exd5 {[%clk 0:02:53.3]} 3... Qxd5 {[%clk
0:03:00.8]} 4. d4 {[%clk 0:02:53.4]} 4... Nf6 {[%clk 0:03:01.5]} 5. Nf3 {[%clk
0:02:52.7]} 5... e6 {[%clk 0:03:02.1]} 6. Be3 {[%clk 0:02:51.7]} 6... cxd4
{[%clk 0:03:01.2]} 7. cxd4 {[%clk 0:02:52.6]} 7... Nc6 {[%clk 0:03:00.9]} 8. Nc3
{[%clk 0:02:52.6]} 8... Qd6 {[%clk 0:03:01.6]} 9. Bd3 {[%clk 0:02:42.2]} 9...
Be7 {[%clk 0:03:02.2]} 10. O-O {[%clk 0:02:41.2]} 10... O-O {[%clk 0:03:02.7]}
11. Qe2 {[%clk 0:02:38.8]} 11... Nb4 {[%clk 0:03:02.9]} 12. Bb1 {[%clk
0:02:36.8]} 12... a6 {[%clk 0:03:00]} 13. Rd1 {[%clk 0:02:35.3]} 13... b5 {[%clk
0:02:59.9]} 14. a3 {[%clk 0:02:34.2]} 14... Nbd5 {[%clk 0:03:00.3]} 15. Ne5
{[%clk 0:02:20.3]} 15... Bb7 {[%clk 0:02:59.6]} 16. Bg5 {[%clk 0:02:07.4]} 16...
Rac8 {[%clk 0:02:51.9]} 17. Nxd5 {[%clk 0:01:53.4]} 17... Qxd5 {[%clk
0:02:47.8]} 18. f3 {[%clk 0:01:47.6]} 18... h6 {[%clk 0:02:30.3]} 19. Bxf6
{[%clk 0:01:44.8]} 19... Bxf6 {[%clk 0:02:30.7]} 20. Be4 {[%clk 0:01:44.2]}
20... Qb3 {[%clk 0:02:09.9]} 21. Bxb7 {[%clk 0:01:41.2]} 21... Rc2 {[%clk
0:02:10.6]} 22. Qf1 {[%clk 0:01:21.7]} 22... Qxb2 {[%clk 0:02:04.1]} 23. Bxa6
{[%clk 0:00:59.6]} 23... Rd8 {[%clk 0:01:54.6]} 24. Bxb5 {[%clk 0:00:39.3]}
24... Rxd4 {[%clk 0:01:48.3]} 25. Ng4 {[%clk 0:00:30.6]} 25... Bg5 {[%clk
0:01:11.3]} 26. a4 {[%clk 0:00:20.5]} 26... h5 {[%clk 0:01:06.9]} 27. a5 {[%clk
0:00:16.7]} 27... hxg4 {[%clk 0:00:56.7]} 28. fxg4 {[%clk 0:00:16.6]} 28... Be3+
{[%clk 0:00:57.5]} 29. Kh1 {[%clk 0:00:16.2]} 29... Rf2 {[%clk 0:00:52.8]} 30.
Qe1 {[%clk 0:00:12.9]} 30... Rxg2 {[%clk 0:00:52.9]} 31. Qf1 {[%clk 0:00:07.3]}
31... Rxh2# {[%clk 0:00:52.6]} 0-1

[Event "Late-Titled-Tuesday-Blitz-September-26-2023"]
[Site "Chess.com"]
[Date "2023.09.26"]
[Round "1"]
[White "dodoucb"]
[Black "Jospem"]
[Result "0-1"]
[WhiteElo "2496"]
[BlackElo "2994"]
[TimeControl "180+1"]
[EndTime "14:06:14 PDT"]
[Termination "Jospem won by resignation"]

1. d4 {[%clk 0:02:58.2]} 1... Nf6 {[%clk 0:03:00]} 2. Nf3 {[%clk 0:02:57.1]}
2... e6 {[%clk 0:02:57.9]} 3. c4 {[%clk 0:02:56.6]} 3... Bb4+ {[%clk 0:02:56.7]}
4. Bd2 {[%clk 0:02:56]} 4... c5 {[%clk 0:02:55.8]} 5. a3 {[%clk 0:02:49.5]} 5...
Bxd2+ {[%clk 0:02:43.6]} 6. Qxd2 {[%clk 0:02:50.4]} 6... b6 {[%clk 0:02:38.9]}
7. Nc3 {[%clk 0:02:47]} 7... O-O {[%clk 0:02:36]} 8. e4 {[%clk 0:02:42.4]} 8...
cxd4 {[%clk 0:02:36]} 9. Nxd4 {[%clk 0:02:42.4]} 9... Nc6 {[%clk 0:02:27.7]} 10.
Be2 {[%clk 0:02:19.5]} 10... Bb7 {[%clk 0:02:25.7]} 11. O-O {[%clk 0:02:17.1]}
11... Qe7 {[%clk 0:02:10.3]} 12. Rad1 {[%clk 0:01:09.1]} 12... Rfd8 {[%clk
0:02:01.4]} 13. Qe3 {[%clk 0:01:06]} 13... d6 {[%clk 0:02:00.7]} 14. f4 {[%clk
0:00:52.8]} 14... Rac8 {[%clk 0:01:51.4]} 15. b3 {[%clk 0:00:38]} 15... Na5
{[%clk 0:01:40.4]} 16. Rfe1 {[%clk 0:00:28.4]} 16... g6 {[%clk 0:01:40]} 17. Bf3
{[%clk 0:00:26.9]} 17... e5 {[%clk 0:01:39.5]} 18. Ndb5 {[%clk 0:00:22.7]} 18...
Bc6 {[%clk 0:01:30.7]} 19. Nd5 {[%clk 0:00:19.2]} 19... Nxd5 {[%clk 0:01:27]}
20. exd5 {[%clk 0:00:19.6]} 20... Bxb5 {[%clk 0:01:27.5]} 21. cxb5 {[%clk
0:00:20.3]} 21... f6 {[%clk 0:01:12.8]} 22. Rc1 {[%clk 0:00:16.5]} 22... Rxc1
{[%clk 0:01:04.5]} 23. Rxc1 {[%clk 0:00:15.7]} 23... Rf8 {[%clk 0:01:05.4]} 24.
b4 {[%clk 0:00:07.5]} 24... Nb7 {[%clk 0:01:05.5]} 25. Rc6 {[%clk 0:00:08.3]}
25... Nd8 {[%clk 0:01:05.8]} 26. Rc3 {[%clk 0:00:07.9]} 26... Nf7 {[%clk
0:01:06.3]} 27. h3 {[%clk 0:00:06.2]} 27... f5 {[%clk 0:01:06.9]} 28. Bd1 {[%clk
0:00:05.9]} 28... Re8 {[%clk 0:01:06.7]} 29. Qc1 {[%clk 0:00:05.9]} 29... exf4
{[%clk 0:01:05.7]} 30. Kh2 {[%clk 0:00:04.9]} 30... Qe5 {[%clk 0:01:05.9]} 31.
Bf3 {[%clk 0:00:05.1]} 31... g5 {[%clk 0:01:04.3]} 32. Rc7 {[%clk 0:00:04.8]}
32... g4 {[%clk 0:01:03.8]} 33. hxg4 {[%clk 0:00:05.7]} 33... fxg4 {[%clk
0:01:04.7]} 34. Bxg4 {[%clk 0:00:06.1]} 34... f3+ {[%clk 0:01:05.4]} 35. g3
{[%clk 0:00:06.6]} 0-1

[Event "Late-Titled-Tuesday-Blitz-September-26-2023"]
[Site "Chess.com"]
[Date "2023.09.26"]
[Round "1"]
[White "The_Princess_Moon"]
[Black "Aariow"]
[Result "0-1"]
[WhiteElo "2270"]
[BlackElo "2595"]
[TimeControl "180+1"]
[EndTime "14:06:21 PDT"]
[Termination "Aariow won by checkmate"]

1. e4 {[%clk 0:02:58.1]} 1... c5 {[%clk 0:03:00]} 2. Nf3 {[%clk 0:02:57.6]} 2...
Nc6 {[%clk 0:03:00]} 3. Bb5 {[%clk 0:02:56.1]} 3... g6 {[%clk 0:03:00.5]} 4.
Bxc6 {[%clk 0:02:55.4]} 4... dxc6 {[%clk 0:03:01.4]} 5. h3 {[%clk 0:02:53.2]}
5... Bg7 {[%clk 0:03:01.9]} 6. O-O {[%clk 0:02:53.1]} 6... e5 {[%clk 0:02:55.2]}
7. Re1 {[%clk 0:02:54]} 7... f6 {[%clk 0:02:54.5]} 8. d3 {[%clk 0:02:52.2]} 8...
Nh6 {[%clk 0:02:54.6]} 9. Be3 {[%clk 0:02:50.6]} 9... b6 {[%clk 0:02:55.2]} 10.
a3 {[%clk 0:02:48.4]} 10... O-O {[%clk 0:02:54.8]} 11. b4 {[%clk 0:02:47.7]}
11... cxb4 {[%clk 0:02:55.7]} 12. axb4 {[%clk 0:02:48.2]} 12... Nf7 {[%clk
0:02:55.9]} 13. c3 {[%clk 0:02:33.2]} 13... f5 {[%clk 0:02:42.8]} 14. Qc2 {[%clk
0:02:27.4]} 14... f4 {[%clk 0:02:35.1]} 15. Bc1 {[%clk 0:02:26.4]} 15... g5
{[%clk 0:02:35]} 16. d4 {[%clk 0:02:22.7]} 16... g4 {[%clk 0:02:28.8]} 17. hxg4
{[%clk 0:02:22]} 17... Bxg4 {[%clk 0:02:28.2]} 18. Nxe5 {[%clk 0:02:20.4]} 18...
Bxe5 {[%clk 0:02:02.5]} 19. dxe5 {[%clk 0:02:21.3]} 19... Nxe5 {[%clk
0:02:03.4]} 20. Nd2 {[%clk 0:01:53.1]} 20... Nd3 {[%clk 0:01:52.7]} 21. Rf1
{[%clk 0:01:39.3]} 21... Be2 {[%clk 0:01:27.3]} 22. Qb3+ {[%clk 0:01:11]} 22...
Rf7 {[%clk 0:01:16.1]} 23. Nc4 {[%clk 0:01:00.9]} 23... Bxf1 {[%clk 0:00:55.9]}
24. Kxf1 {[%clk 0:01:01.8]} 24... Qh4 {[%clk 0:00:53.3]} 25. Qc2 {[%clk
0:00:32.8]} 25... f3 {[%clk 0:00:30.6]} 26. Qxd3 {[%clk 0:00:15.7]} 26... Qh1#
{[%clk 0:00:29.1]} 0-1

[Event "Late-Titled-Tuesday-Blitz-September-26-2023"]
[Site "Chess.com"]
[Date "2023.09.26"]
[Round "1"]
[White "HamedWafa4"]
[Black "YouShallNotPass001"]
[Result "1-0"]
[WhiteElo "2647"]
[BlackElo "2335"]
[TimeControl "180+1"]
[EndTime "14:06:23 PDT"]
[Termination "HamedWafa4 won on time"]

1. e4 {[%clk 0:03:00.9]} 1... e6 {[%clk 0:02:58.9]} 2. d4 {[%clk 0:03:00.1]}
2... d5 {[%clk 0:02:59.8]} 3. e5 {[%clk 0:02:59.2]} 3... c5 {[%clk 0:03:00.1]}
4. c3 {[%clk 0:02:58.9]} 4... Nc6 {[%clk 0:03:01]} 5. Nf3 {[%clk 0:02:58.6]}
5... Bd7 {[%clk 0:02:59.5]} 6. Be2 {[%clk 0:02:57.2]} 6... Rc8 {[%clk 0:03:00]}
7. O-O {[%clk 0:02:56.9]} 7... h6 {[%clk 0:03:00.6]} 8. Be3 {[%clk 0:02:52.2]}
8... Nge7 {[%clk 0:02:57.8]} 9. dxc5 {[%clk 0:02:47.8]} 9... Ng6 {[%clk
0:02:57.7]} 10. Bd4 {[%clk 0:02:46.5]} 10... Qc7 {[%clk 0:02:57]} 11. Bb5 {[%clk
0:02:41.4]} 11... Ncxe5 {[%clk 0:02:55.3]} 12. Nxe5 {[%clk 0:02:39.2]} 12...
Nxe5 {[%clk 0:02:56.2]} 13. Bxe5 {[%clk 0:02:38]} 13... Qxe5 {[%clk 0:02:57.1]}
14. Bxd7+ {[%clk 0:02:37.6]} 14... Kxd7 {[%clk 0:02:58]} 15. Re1 {[%clk
0:02:36.5]} 15... Qf4 {[%clk 0:02:49.7]} 16. g3 {[%clk 0:02:28]} 16... Qc4
{[%clk 0:02:46.4]} 17. Qf3 {[%clk 0:02:21.4]} 17... f6 {[%clk 0:02:40.4]} 18. b4
{[%clk 0:02:18.5]} 18... b6 {[%clk 0:02:15.2]} 19. Nd2 {[%clk 0:02:17.3]} 19...
Qa6 {[%clk 0:02:13.9]} 20. c4 {[%clk 0:01:56.4]} 20... d4 {[%clk 0:02:11.1]} 21.
b5 {[%clk 0:01:45.5]} 21... Qa5 {[%clk 0:01:37.4]} 22. c6+ {[%clk 0:01:42.6]}
22... Kc7 {[%clk 0:01:37]} 23. Nb3 {[%clk 0:01:36.1]} 23... Qc3 {[%clk
0:01:36.5]} 24. Qg4 {[%clk 0:01:12.2]} 24... Qxc4 {[%clk 0:00:55.7]} 25. Rxe6
{[%clk 0:01:06.1]} 25... Rd8 {[%clk 0:00:30.2]} 26. Rae1 {[%clk 0:01:01.2]}
26... Kb8 {[%clk 0:00:23.5]} 27. Qf4+ {[%clk 0:00:58.4]} 27... Kc8 {[%clk
0:00:17]} 28. Re7 {[%clk 0:00:52.4]} 28... Bxe7 {[%clk 0:00:10.3]} 29. Rxe7
{[%clk 0:00:53.3]} 1-0

[Event "Late-Titled-Tuesday-Blitz-September-26-2023"]
[Site "Chess.com"]
[Date "2023.09.26"]
[Round "1"]
[White "expii"]
[Black "Mikhail_Golubev"]
[Result "0-1"]
[WhiteElo "2251"]
[BlackElo "2589"]
[TimeControl "180+1"]
[EndTime "14:06:25 PDT"]
[Termination "Mikhail_Golubev won by resignation"]

1. e4 {[%clk 0:03:00]} 1... c5 {[%clk 0:02:58.7]} 2. Nf3 {[%clk 0:02:59.9]} 2...
d6 {[%clk 0:02:58.3]} 3. d4 {[%clk 0:03:00.8]} 3... Nf6 {[%clk 0:02:58.4]} 4.
dxc5 {[%clk 0:02:57.5]} 4... Nxe4 {[%clk 0:02:57]} 5. cxd6 {[%clk 0:02:53.5]}
5... Nc6 {[%clk 0:02:57.4]} 6. Bd3 {[%clk 0:02:48.4]} 6... Nxd6 {[%clk
0:02:56.8]} 7. O-O {[%clk 0:02:48.6]} 7... g6 {[%clk 0:02:57.4]} 8. Nc3 {[%clk
0:02:48.4]} 8... Bg7 {[%clk 0:02:57.3]} 9. Bf4 {[%clk 0:02:47.4]} 9... O-O
{[%clk 0:02:55.1]} 10. Rb1 {[%clk 0:02:40.5]} 10... Bf5 {[%clk 0:02:40.1]} 11.
Bxd6 {[%clk 0:02:21.9]} 11... Qxd6 {[%clk 0:02:37.7]} 12. Bxf5 {[%clk
0:02:16.2]} 12... Qxd1 {[%clk 0:02:35.6]} 13. Rbxd1 {[%clk 0:02:17.1]} 13...
gxf5 {[%clk 0:02:34.4]} 14. Nd5 {[%clk 0:02:13.2]} 14... e6 {[%clk 0:02:26.5]}
15. Nf4 {[%clk 0:02:01.8]} 15... Rfd8 {[%clk 0:02:13.1]} 16. c3 {[%clk
0:01:50.1]} 16... b5 {[%clk 0:02:11.8]} 17. Rfe1 {[%clk 0:01:14.1]} 17... Kf8
{[%clk 0:02:01.8]} 18. h4 {[%clk 0:01:09.2]} 18... Rxd1 {[%clk 0:01:51]} 19.
Rxd1 {[%clk 0:01:02.9]} 19... Ke7 {[%clk 0:01:49.1]} 20. Ng5 {[%clk 0:00:37.3]}
20... h6 {[%clk 0:01:36.7]} 21. Nf3 {[%clk 0:00:31.2]} 21... a5 {[%clk
0:01:31.2]} 22. Nd3 {[%clk 0:00:29.9]} 22... b4 {[%clk 0:01:26.9]} 23. cxb4
{[%clk 0:00:28.5]} 23... axb4 {[%clk 0:01:07.3]} 24. Nc5 {[%clk 0:00:18.9]}
24... Bxb2 {[%clk 0:00:58.4]} 25. Rd7+ {[%clk 0:00:14.6]} 25... Kf6 {[%clk
0:00:49.4]} 26. Rc7 {[%clk 0:00:15.5]} 26... Nd4 {[%clk 0:00:39.6]} 27. Nxd4
{[%clk 0:00:06.4]} 27... Bxd4 {[%clk 0:00:38.7]} 28. Nd7+ {[%clk 0:00:07.3]}
28... Kg7 {[%clk 0:00:38.2]} 0-1

[Event "Late-Titled-Tuesday-Blitz-September-26-2023"]
[Site "Chess.com"]
[Date "2023.09.26"]
[Round "1"]
[White "Danishcrown"]
[Black "Chessdreamer2020"]
[Result "0-1"]
[WhiteElo "2121"]
[BlackElo "2539"]
[TimeControl "180+1"]
[EndTime "14:06:26 PDT"]
[Termination "Chessdreamer2020 won on time"]

1. d4 {[%clk 0:02:59]} 1... d6 {[%clk 0:02:56.7]} 2. Nf3 {[%clk 0:02:57.3]} 2...
Bg4 {[%clk 0:02:55.6]} 3. c4 {[%clk 0:02:56.2]} 3... Bxf3 {[%clk 0:02:50]} 4.
exf3 {[%clk 0:02:55.3]} 4... g6 {[%clk 0:02:50.9]} 5. Bd3 {[%clk 0:02:41.7]}
5... Bg7 {[%clk 0:02:51.8]} 6. Be3 {[%clk 0:02:22.3]} 6... e6 {[%clk 0:02:52.7]}
7. Nc3 {[%clk 0:02:18.4]} 7... Ne7 {[%clk 0:02:52.3]} 8. Qb3 {[%clk 0:02:14.7]}
8... b6 {[%clk 0:02:48.4]} 9. h4 {[%clk 0:02:08.6]} 9... O-O {[%clk 0:02:49.3]}
10. h5 {[%clk 0:02:08.7]} 10... Nbc6 {[%clk 0:02:45]} 11. hxg6 {[%clk
0:02:05.9]} 11... hxg6 {[%clk 0:02:25.3]} 12. Ne2 {[%clk 0:01:52.7]} 12... d5
{[%clk 0:02:18.5]} 13. Rc1 {[%clk 0:01:41.9]} 13... dxc4 {[%clk 0:02:16.3]} 14.
Qxc4 {[%clk 0:01:39.2]} 14... Rc8 {[%clk 0:02:06.5]} 15. Be4 {[%clk 0:01:13]}
15... Na5 {[%clk 0:01:40.4]} 16. Qb5 {[%clk 0:01:03.8]} 16... c6 {[%clk
0:01:24.2]} 17. Qg5 {[%clk 0:01:02.9]} 17... Nd5 {[%clk 0:01:11.7]} 18. Qg4
{[%clk 0:00:47]} 18... Nxe3 {[%clk 0:00:52]} 19. fxe3 {[%clk 0:00:19.1]} 19...
f5 {[%clk 0:00:52.1]} 20. Qxg6 {[%clk 0:00:18.5]} 20... fxe4 {[%clk 0:00:52.5]}
21. Qxe6+ {[%clk 0:00:12.1]} 21... Rf7 {[%clk 0:00:52.8]} 22. Nf4 {[%clk
0:00:06.6]} 22... exf3 {[%clk 0:00:49.7]} 23. Qh3 {[%clk 0:00:05.9]} 23... fxg2
{[%clk 0:00:48.3]} 24. Qh7+ {[%clk 0:00:03.6]} 24... Kf8 {[%clk 0:00:48.6]} 25.
Ng6+ {[%clk 0:00:04.2]} 25... Ke8 {[%clk 0:00:49]} 26. Qg8+ {[%clk 0:00:02.8]}
26... Bf8 {[%clk 0:00:48.7]} 27. Rg1 {[%clk 0:00:01.6]} 27... Qf6 {[%clk
0:00:47.6]} 0-1

[Event "Late-Titled-Tuesday-Blitz-September-26-2023"]
[Site "Chess.com"]
[Date "2023.09.26"]
[Round "1"]
[White "EsmeraldasAnderson03"]
[Black "DonkyDonkyDonkey"]
[Result "0-1"]
[WhiteElo "2415"]
[BlackElo "2754"]
[TimeControl "180+1"]
[EndTime "14:06:30 PDT"]
[Termination "DonkyDonkyDonkey won on time"]

1. d4 {[%clk 0:02:59.6]} 1... Nf6 {[%clk 0:03:00.1]} 2. c4 {[%clk 0:02:58.5]}
2... g6 {[%clk 0:02:57.3]} 3. Bf4 {[%clk 0:02:55.7]} 3... Bg7 {[%clk 0:02:57.3]}
4. h3 {[%clk 0:02:56.4]} 4... O-O {[%clk 0:02:57.4]} 5. Bh2 {[%clk 0:02:57.1]}
5... d5 {[%clk 0:02:52.5]} 6. cxd5 {[%clk 0:02:56.4]} 6... Nxd5 {[%clk
0:02:53.4]} 7. e4 {[%clk 0:02:55.5]} 7... Nb6 {[%clk 0:02:53.4]} 8. Nf3 {[%clk
0:02:56.1]} 8... c5 {[%clk 0:02:53.2]} 9. e5 {[%clk 0:02:46.7]} 9... cxd4 {[%clk
0:02:50.2]} 10. Nxd4 {[%clk 0:02:42.8]} 10... Qd5 {[%clk 0:02:34.9]} 11. Nc3
{[%clk 0:02:37.6]} 11... Qd8 {[%clk 0:01:56.9]} 12. Be2 {[%clk 0:02:29.9]} 12...
Nc6 {[%clk 0:01:57.1]} 13. Nxc6 {[%clk 0:02:29.4]} 13... bxc6 {[%clk 0:01:58]}
14. O-O {[%clk 0:02:27.1]} 14... Be6 {[%clk 0:01:52.2]} 15. Bf3 {[%clk
0:02:18.5]} 15... Rc8 {[%clk 0:01:50.8]} 16. Qc2 {[%clk 0:02:06.9]} 16... Nc4
{[%clk 0:01:47]} 17. Rfd1 {[%clk 0:02:03.7]} 17... Qa5 {[%clk 0:01:38.3]} 18.
Re1 {[%clk 0:01:22.6]} 18... Rb8 {[%clk 0:01:29.3]} 19. b3 {[%clk 0:01:12]}
19... Nxe5 {[%clk 0:01:28.2]} 20. Be4 {[%clk 0:01:04.4]} 20... Rbd8 {[%clk
0:01:23]} 21. Rad1 {[%clk 0:00:44.2]} 21... Rxd1 {[%clk 0:01:10.4]} 22. Rxd1
{[%clk 0:00:40.5]} 22... f5 {[%clk 0:01:10.8]} 23. Ne2 {[%clk 0:00:06.1]} 23...
fxe4 {[%clk 0:01:07]} 24. Nd4 {[%clk 0:00:06.7]} 24... Bd5 {[%clk 0:01:03.2]}
25. Bg3 {[%clk 0:00:07.3]} 25... Qb6 {[%clk 0:00:59.5]} 26. Ne2 {[%clk
0:00:07.5]} 26... Nd3 {[%clk 0:00:59.2]} 27. Rf1 {[%clk 0:00:03.2]} 27... Be5
{[%clk 0:00:45.5]} 28. Bxe5 {[%clk 0:00:02.5]} 28... Nxe5 {[%clk 0:00:46.4]} 29.
Qc3 {[%clk 0:00:02.3]} 29... Nd3 {[%clk 0:00:45.3]} 30. Nd4 {[%clk 0:00:02.9]}
30... Nf4 {[%clk 0:00:45]} 0-1

[Event "Late-Titled-Tuesday-Blitz-September-26-2023"]
[Site "Chess.com"]
[Date "2023.09.26"]
[Round "1"]
[White "HajiyevKanan"]
[Black "elcala"]
[Result "1-0"]
[WhiteElo "2506"]
[BlackElo "1722"]
[TimeControl "180+1"]
[EndTime "14:06:41 PDT"]
[Termination "HajiyevKanan won by resignation"]

1. d4 {[%clk 0:02:59.6]} 1... f5 {[%clk 0:02:57.4]} 2. Bg5 {[%clk 0:02:57.9]}
2... Nf6 {[%clk 0:02:56.9]} 3. Bxf6 {[%clk 0:02:58.1]} 3... gxf6 {[%clk
0:02:54.4]} 4. e3 {[%clk 0:02:59]} 4... e6 {[%clk 0:02:53.9]} 5. Qh5+ {[%clk
0:02:58.4]} 5... Ke7 {[%clk 0:02:38.6]} 6. d5 {[%clk 0:02:56.5]} 6... Qe8 {[%clk
0:02:38.4]} 7. Qh3 {[%clk 0:02:54.5]} 7... Qg6 {[%clk 0:02:34.9]} 8. Bd3 {[%clk
0:02:49.9]} 8... Bg7 {[%clk 0:02:30.9]} 9. Nc3 {[%clk 0:02:48.6]} 9... b6 {[%clk
0:02:29.8]} 10. O-O-O {[%clk 0:02:47.8]} 10... Bb7 {[%clk 0:02:30.3]} 11. Nge2
{[%clk 0:02:46.8]} 11... c6 {[%clk 0:02:25.6]} 12. dxe6 {[%clk 0:02:15.2]} 12...
dxe6 {[%clk 0:02:24.4]} 13. Bc4 {[%clk 0:02:15.1]} 13... Ba6 {[%clk 0:02:19.6]}
14. Nf4 {[%clk 0:02:06.2]} 14... Qg4 {[%clk 0:01:58.2]} 15. Bxe6 {[%clk
0:01:47.8]} 15... Qxh3 {[%clk 0:01:54.6]} 16. gxh3 {[%clk 0:01:48.7]} 16... Bh6
{[%clk 0:01:53.5]} 17. Bxf5 {[%clk 0:01:44.7]} 17... Bxf4 {[%clk 0:01:52.3]} 18.
exf4 {[%clk 0:01:45.6]} 18... Kf7 {[%clk 0:01:50.9]} 19. Rhe1 {[%clk 0:01:39.8]}
19... Bc4 {[%clk 0:01:42.9]} 20. b3 {[%clk 0:01:38.2]} 20... Ba6 {[%clk
0:01:41.1]} 21. h4 {[%clk 0:01:38.8]} 21... Bc8 {[%clk 0:01:40.3]} 22. Bxc8
{[%clk 0:01:29.9]} 22... Rxc8 {[%clk 0:01:41.2]} 23. h5 {[%clk 0:01:30.5]} 23...
Na6 {[%clk 0:01:41.3]} 24. f5 {[%clk 0:01:27]} 24... Rd8 {[%clk 0:01:39.4]} 25.
Ne4 {[%clk 0:01:26.7]} 25... Nb4 {[%clk 0:01:36.5]} 26. Nd6+ {[%clk 0:01:21.6]}
26... Kf8 {[%clk 0:01:33.2]} 27. Re6 {[%clk 0:01:17.7]} 27... Nd5 {[%clk
0:01:27.1]} 28. c4 {[%clk 0:01:16.7]} 28... Rxd6 {[%clk 0:01:00.9]} 29. Rxd6
{[%clk 0:01:14]} 29... Nc3 {[%clk 0:00:59.9]} 30. Rd8+ {[%clk 0:01:10.4]} 30...
Rxd8 {[%clk 0:00:58.3]} 31. Rxd8+ {[%clk 0:01:11.3]} 31... Ke7 {[%clk
0:00:58.4]} 32. Ra8 {[%clk 0:01:02.8]} 32... Kd6 {[%clk 0:00:49.9]} 33. Rxa7
{[%clk 0:01:01.8]} 33... Ke5 {[%clk 0:00:50.8]} 34. Rxh7 {[%clk 0:00:50.7]}
34... Kxf5 {[%clk 0:00:50.2]} 35. Kb2 {[%clk 0:00:45.9]} 35... Ne4 {[%clk
0:00:50.5]} 36. f3 {[%clk 0:00:41.2]} 36... Ng5 {[%clk 0:00:50.3]} 37. Rc7
{[%clk 0:00:40.7]} 37... Nxf3 {[%clk 0:00:49.4]} 38. h6 {[%clk 0:00:41.3]} 38...
Ng5 {[%clk 0:00:32.7]} 39. h4 {[%clk 0:00:37]} 39... Ne6 {[%clk 0:00:26.7]} 40.
Rxc6 {[%clk 0:00:37.2]} 40... Nc7 {[%clk 0:00:27.6]} 41. Rxc7 {[%clk 0:00:37.3]}
1-0

[Event "Late-Titled-Tuesday-Blitz-September-26-2023"]
[Site "Chess.com"]
[Date "2023.09.26"]
[Round "1"]
[White "subham777"]
[Black "MajorCoast"]
[Result "1-0"]
[WhiteElo "2601"]
[BlackElo "2279"]
[TimeControl "180+1"]
[EndTime "14:06:42 PDT"]
[Termination "subham777 won by resignation"]

1. e4 {[%clk 0:03:00.9]} 1... c6 {[%clk 0:02:58.8]} 2. c4 {[%clk 0:02:59.1]}
2... d5 {[%clk 0:02:59.7]} 3. cxd5 {[%clk 0:02:57.2]} 3... cxd5 {[%clk
0:03:00.6]} 4. exd5 {[%clk 0:02:56.5]} 4... Nf6 {[%clk 0:03:01.2]} 5. Nf3 {[%clk
0:02:56.4]} 5... g6 {[%clk 0:02:56.4]} 6. Nc3 {[%clk 0:02:56.2]} 6... Bg7 {[%clk
0:02:55.6]} 7. d4 {[%clk 0:02:56.4]} 7... O-O {[%clk 0:02:54.8]} 8. Bc4 {[%clk
0:02:55.9]} 8... Nbd7 {[%clk 0:02:54.4]} 9. d6 {[%clk 0:02:55.9]} 9... exd6
{[%clk 0:02:46.9]} 10. O-O {[%clk 0:02:55.4]} 10... Nb6 {[%clk 0:02:46.4]} 11.
Bb3 {[%clk 0:02:54.9]} 11... Bg4 {[%clk 0:02:44.7]} 12. h3 {[%clk 0:02:54.7]}
12... Bf5 {[%clk 0:02:40.8]} 13. Re1 {[%clk 0:02:52.3]} 13... d5 {[%clk
0:02:38.3]} 14. Bg5 {[%clk 0:02:50.6]} 14... Qd6 {[%clk 0:02:25.9]} 15. Rc1
{[%clk 0:02:39.3]} 15... a6 {[%clk 0:02:21.1]} 16. Ne5 {[%clk 0:02:26.6]} 16...
Ne4 {[%clk 0:02:10.5]} 17. Nxe4 {[%clk 0:01:49.1]} 17... Bxe4 {[%clk 0:02:11.4]}
18. Nf3 {[%clk 0:01:33.1]} 18... Bxf3 {[%clk 0:02:00.7]} 19. Qxf3 {[%clk
0:01:31.3]} 19... Bxd4 {[%clk 0:02:00.8]} 20. Be7 {[%clk 0:01:28.9]} 20... Qb4
{[%clk 0:01:51.8]} 21. Bxf8 {[%clk 0:01:23.9]} 21... Rxf8 {[%clk 0:01:52.7]} 22.
Bxd5 {[%clk 0:01:19.6]} 22... Qxb2 {[%clk 0:01:33.6]} 23. Rb1 {[%clk 0:01:00.6]}
23... Qd2 {[%clk 0:01:22.8]} 24. Red1 {[%clk 0:00:54.2]} 24... Qc2 {[%clk
0:01:05.4]} 25. Rbc1 {[%clk 0:00:45.4]} 25... Qb2 {[%clk 0:01:00.5]} 26. Bb3
{[%clk 0:00:36.6]} 26... Bg7 {[%clk 0:00:46.5]} 27. Rc7 {[%clk 0:00:28.3]} 27...
Nc8 {[%clk 0:00:25]} 28. Rxf7 {[%clk 0:00:26.6]} 28... Kh8 {[%clk 0:00:14.4]}
29. Rxf8+ {[%clk 0:00:25.8]} 1-0